bitfinex/quotes_BTCUSD_20240623
["timestamp","ask_amount","ask_price","bid_price","bid_amount"]
[1719185373777,1.66492837,63650.0,63649.0,0.022935]
[1719185374498,1.66481897,63650.0,63649.0,0.022935]
[1719185375691,1.97903697,63650.0,63649.0,0.022935]
[1719185377477,1.97936365,63650.0,63649.0,0.022935]
[1719185380123,2.04231965,63650.0,63649.0,0.022935]
[1719185380544,2.04233138,63650.0,63649.0,0.022935]
[1719185380977,2.01856259,63650.0,63649.0,0.022935]
[1719185381204,2.04233126,63650.0,63649.0,0.022935]
[1719185383703,2.04059838,63650.0,63649.0,0.022935]
[1719185386700,1.98174464,63650.0,63649.0,0.022935]
[1719185386896,2.04073401,63650.0,63649.0,0.022935]
[1719185389916,2.03996437,63650.0,63649.0,0.022935]
[1719185390091,1.90026437,63650.0,63649.0,0.022935]
[1719185390310,1.90037282,63650.0,63649.0,0.022935]
[1719185392899,1.81909532,63650.0,63649.0,0.022935]
[1719185393107,2.04366767,63650.0,63649.0,0.022935]
[1719185394954,2.49063181,63650.0,63649.0,0.022935]
[1719185395094,2.85634636,63650.0,63649.0,0.022935]
[1719185395301,2.56265081,63650.0,63649.0,0.022935]
[1719185395894,2.23076157,63650.0,63649.0,0.011935]
[1719185396391,2.23276157,63650.0,63649.0,0.011935]
[1719185396594,2.23176157,63650.0,63649.0,0.000935]
[1719185396967,2.23476157,63650.0,63649.0,0.000935]
[1719185397373,2.38731571,63650.0,63649.0,0.000935]
[1719185398001,2.23476157,63650.0,63649.0,0.000935]
[1719185398646,2.14107767,63650.0,63649.0,0.000935]
[1719185398985,2.05980532,63650.0,63649.0,0.000935]
[1719185399189,2.14102822,63650.0,63649.0,0.000935]
[1719185399373,2.05980532,63650.0,63649.0,0.000935]
[1719185399572,2.14069374,63650.0,63649.0,0.000935]
[1719185401025,2.08759374,63650.0,63649.0,0.000935]
[1719185401503,2.19958448,63650.0,63649.0,0.000935]
[1719185401811,2.25826761,63650.0,63649.0,0.000935]
[1719185402045,2.31353381,63650.0,63649.0,0.000935]
[1719185402247,2.25826761,63650.0,63649.0,0.000935]
[1719185404432,2.14181278,63650.0,63649.0,0.000935]
[1719185405971,2.02551278,63650.0,63649.0,0.000935]
[1719185406131,2.07861278,63650.0,63649.0,0.000935]
[1719185407163,2.19588609,63650.0,63649.0,0.000935]
[1719185407371,2.19853243,63650.0,63649.0,0.000935]
[1719185407577,2.29999786,63650.0,63649.0,0.000935]
[1719185407792,2.12239537,63650.0,63649.0,0.000935]
[1719185407996,2.29999774,63650.0,63649.0,0.000935]
[1719185408198,2.19854277,63650.0,63649.0,0.000935]
[1719185408605,2.08125721,63650.0,63649.0,0.000935]
[1719185409078,1.99660532,63650.0,63649.0,0.000935]
[1719185409248,2.08126218,63650.0,63649.0,0.000935]
[1719185410173,2.00116218,63650.0,63649.0,0.000935]
[1719185410378,2.00310164,63650.0,63649.0,0.000935]
[1719185410782,1.79135967,63650.0,63649.0,0.000935]
[1719185411214,1.94846867,63650.0,63649.0,0.000935]
[1719185412256,1.56115067,63650.0,63649.0,0.000935]
[1719185412459,1.7316018,63650.0,63649.0,0.000935]
[1719185413476,1.70660559,63650.0,63649.0,0.000935]
[1719185413684,1.73212192,63650.0,63649.0,0.000935]
[1719185414458,1.75212192,63650.0,63649.0,0.000935]
[1719185414671,1.63475135,63650.0,63649.0,0.000935]
[1719185416868,1.54765435,63650.0,63649.0,0.000935]
[1719185417114,1.58125212,63650.0,63649.0,0.000935]
[1719185417338,1.63435212,63650.0,63649.0,0.000935]
[1719185418198,1.63253379,63650.0,63649.0,0.000935]
[1719185419525,1.60793854,63650.0,63649.0,0.000935]
[1719185419737,1.63223334,63650.0,63649.0,0.000935]
[1719185422566,1.54765435,63650.0,63649.0,0.000935]
[1719185422790,1.63164206,63650.0,63649.0,0.000935]
[1719185425337,2.02706006,63650.0,63649.0,0.000935]
[1719185425549,2.08401618,63650.0,63649.0,0.000935]
[1719185425744,2.16839759,63650.0,63649.0,0.000935]
[1719185426038,2.00787235,63650.0,63649.0,0.000935]
[1719185426200,2.23319704,63650.0,63649.0,0.000935]
[1719185427411,2.23312801,63650.0,63649.0,0.000935]
[1719185428015,2.20787235,63650.0,63649.0,0.000935]
[1719185428174,2.2331761,63650.0,63649.0,0.000935]
[1719185428968,2.23325375,63650.0,63649.0,0.000935]
[1719185429115,2.43325375,63650.0,63649.0,0.000935]
[1719185430140,2.23325375,63650.0,63649.0,0.000935]
[1719185431812,2.16845375,63650.0,63649.0,0.000935]
[1719185432015,2.16837275,63650.0,63649.0,0.000935]
[1719185433269,2.02742826,63650.0,63649.0,0.000935]
[1719185434164,2.22742826,63650.0,63649.0,0.000935]
[1719185434370,2.02742826,63650.0,63649.0,0.000935]
[1719185434573,2.21166275,63650.0,63649.0,0.000935]
[1719185434750,2.23166275,63650.0,63649.0,0.000935]
[1719185435328,2.14730672,63650.0,63649.0,0.000935]
[1719185435448,2.22763635,63650.0,63649.0,0.000935]
[1719185435977,1.96073001,63650.0,63649.0,0.000935]
[1719185436375,2.27494801,63650.0,63649.0,0.000935]
[1719185436600,2.47494801,63650.0,63649.0,0.000935]
[1719185436782,2.47430408,63650.0,63649.0,0.000935]
[1719185436998,2.27430408,63650.0,63649.0,0.000935]
[1719185438113,2.27405846,63650.0,63649.0,0.000935]
[1719185438731,2.21075846,63650.0,63649.0,0.000935]
[1719185441296,2.15359777,63650.0,63649.0,0.000935]
[1719185441626,2.21193518,63650.0,63649.0,0.000935]
[1719185442982,1.119882,63643.0,63642.0,0.1454]
[1719185443215,1.45303339,63643.0,63642.0,0.1454]
[1719185443359,1.46749733,63643.0,63642.0,0.1454]
[1719185444443,1.46837285,63643.0,63642.0,0.1454]
[1719185444793,1.38690706,63643.0,63642.0,0.1454]
[1719185445013,1.46841546,63643.0,63642.0,0.1454]
[1719185446019,1.47041546,63643.0,63642.0,0.1584]
[1719185447434,1.47030751,63643.0,63642.0,0.1584]
[1719185449578,1.47030751,63643.0,63642.0,0.013]
[1719185449778,1.78455951,63643.0,63642.0,0.013]
[1719185450369,1.98588094,63643.0,63642.0,0.013]
[1719185450674,1.87858556,63643.0,63642.0,0.013]
[1719185451616,2.2194977,63643.0,63642.0,0.013]
[1719185451782,2.31976357,63643.0,63642.0,0.013]
[1719185451986,2.31876357,63643.0,63642.0,0.006]
[1719185452150,1.434179,63641.0,63640.0,0.0633]
[1719185452353,1.434179,63641.0,63638.0,0.1391]
[1719185452354,0.491408,63639.0,63638.0,0.1391]
[1719185452550,1.45352962,63639.0,63638.0,0.1391]
[1719185452762,1.4679864,63639.0,63638.0,0.1391]
[1719185453191,1.7822584,63639.0,63638.0,0.1391]
[1719185453392,1.828679,63637.0,63624.0,0.1437]
[1719185453605,1.828679,63637.0,63608.0,0.08011544]
[1719185453606,0.90594,63618.0,63617.0,0.53950823]
[1719185453814,1.64749326,63618.0,63617.0,0.53950823]
[1719185454028,2.27144874,63618.0,63617.0,0.53950823]
[1719185454243,2.39639292,63618.0,63617.0,0.53950823]
[1719185454448,2.3327224,63618.0,63617.0,0.53950823]
[1719185454665,3.4001984,63618.0,63617.0,0.08210823]
[1719185454870,3.7624686,63618.0,63617.0,0.08210823]
[1719185455109,3.9032715,63618.0,63617.0,0.08210823]
[1719185455310,3.4773291,63618.0,63617.0,0.08210823]
[1719185455570,2.28652084,63618.0,63617.0,0.08304323]
[1719185455779,2.35006861,63618.0,63617.0,0.08304323]
[1719185455981,2.18755567,63618.0,63617.0,0.08404323]
[1719185456180,2.18755567,63618.0,63617.0,0.08504323]
[1719185456181,2.35465567,63618.0,63617.0,0.08504323]
[1719185456384,2.16099363,63618.0,63617.0,0.08504323]
[1719185456593,2.23486282,63618.0,63617.0,0.08304323]
[1719185456853,1.46647749,63618.0,63617.0,0.08404323]
[1719185457062,1.34389658,63618.0,63617.0,0.08404323]
[1719185457550,1.34389658,63618.0,63617.0,0.08304323]
[1719185457551,1.32989658,63618.0,63617.0,0.08304323]
[1719185457749,0.97939658,63618.0,63617.0,0.08304323]
[1719185458517,0.99339658,63618.0,63617.0,0.08404323]
[1719185458723,0.99339658,63618.0,63617.0,0.08304323]
[1719185458936,0.97939658,63618.0,63617.0,0.08304323]
[1719185459136,1.1559577,63618.0,63617.0,0.08504323]
[1719185459301,1.1559577,63618.0,63617.0,0.08404323]
[1719185459503,1.1419577,63618.0,63617.0,0.08304323]
[1719185459704,1.17858767,63618.0,63617.0,0.08404323]
[1719185459935,0.79520878,63618.0,63617.0,0.08504323]
[1719185460153,0.30827166,63618.0,63617.0,0.08404323]
[1719185460504,0.37137166,63618.0,63617.0,0.08504323]
[1719185460709,0.31827166,63618.0,63617.0,0.08504323]
[1719185460909,0.36137166,63618.0,63617.0,0.08404323]
[1719185461125,0.67574766,63618.0,63617.0,0.08404323]
[1719185461710,0.66574766,63618.0,63617.0,0.08304323]
[1719185461885,0.66575457,63618.0,63617.0,0.08404323]
[1719185462246,0.64711769,63618.0,63617.0,0.08304323]
[1719185462444,0.68201483,63618.0,63617.0,0.08404323]
[1719185462765,0.37263883,63618.0,63617.0,0.08404323]
[1719185462891,0.15435083,63618.0,63617.0,0.08304323]
[1719185463264,0.26963883,63618.0,63617.0,0.08404323]
[1719185463461,0.83657595,63618.0,63617.0,0.08404323]
[1719185463668,1.46532795,63618.0,63617.0,0.08404323]
[1719185463884,1.46032795,63618.0,63617.0,0.08304323]
[1719185464114,1.57484795,63618.0,63617.0,0.08304323]
[1719185464557,1.73240209,63618.0,63617.0,0.08404323]
[1719185464768,1.87906098,63618.0,63617.0,0.08404323]
[1719185464989,2.18043698,63618.0,63617.0,0.08404323]
[1719185465190,2.39691915,63618.0,63617.0,0.08404323]
[1719185465366,2.40091915,63618.0,63617.0,0.08404323]
[1719185465506,2.39691915,63618.0,63617.0,0.08404323]
[1719185465923,2.40191915,63618.0,63617.0,0.08404323]
[1719185466142,2.06254315,63618.0,63617.0,0.08304323]
[1719185466320,1.76339301,63618.0,63617.0,0.08304323]
[1719185466533,1.76839301,63618.0,63617.0,0.08404323]
[1719185467779,1.63667616,63618.0,63617.0,0.08404323]
[1719185468196,1.57290241,63618.0,63617.0,0.08404323]
[1719185469465,1.55290241,63618.0,63617.0,0.08404323]
[1719185469666,1.61589441,63618.0,63617.0,0.08404323]
[1719185469994,1.78844855,63618.0,63617.0,0.08404323]
[1719185470802,1.78833993,63618.0,63617.0,0.08404323]
[1719185471259,1.76049695,63618.0,63617.0,0.08404323]
[1719185471450,1.78841679,63618.0,63617.0,0.08404323]
[1719185471767,1.85215883,63618.0,63617.0,0.08404323]
[1719185473372,1.62650469,63618.0,63617.0,0.08404323]
[1719185473571,1.61586265,63618.0,63617.0,0.08404323]
[1719185473773,1.56276265,63618.0,63617.0,0.08404323]
[1719185473972,1.6152877,63618.0,63617.0,0.08404323]
[1719185475643,1.67846923,63618.0,63617.0,0.08404323]
[1719185476436,1.62536923,63618.0,63617.0,0.08404323]
[1719185476644,1.67846923,63618.0,63617.0,0.08404323]
[1719185476777,1.79238365,63618.0,63617.0,0.08404323]
[1719185477026,1.6787312,63618.0,63617.0,0.08404323]
[1719185478415,1.69823145,63618.0,63617.0,0.08404323]
[1719185479036,1.71823145,63618.0,63617.0,0.08404323]
[1719185480071,1.65470138,63618.0,63617.0,0.08404323]
[1719185480285,1.85035046,63618.0,63617.0,0.08404323]
[1719185480512,1.82309104,63618.0,63617.0,0.08404323]
[1719185480728,1.85034821,63618.0,63617.0,0.08404323]
[1719185480941,1.69779407,63618.0,63617.0,0.08404323]
[1719185481959,1.69779407,63618.0,63617.0,0.14444323]
[1719185483171,1.69766408,63618.0,63617.0,0.14444323]
[1719185486190,1.69755656,63618.0,63617.0,0.14444323]
[1719185486414,1.69755656,63618.0,63617.0,0.08404323]
[1719185486415,1.98961246,63618.0,63617.0,0.08404323]
[1719185486683,1.96961246,63618.0,63617.0,0.08404323]
[1719185487198,1.81341446,63618.0,63617.0,0.08404323]
[1719185487647,1.69757446,63618.0,63617.0,0.08404323]
[1719185488097,1.60744306,63618.0,63617.0,0.08404323]
[1719185489350,1.6977104,63618.0,63617.0,0.08404323]
[1719185489602,1.6978496,63618.0,63617.0,0.08404323]
[1719185490008,1.6986996,63618.0,63617.0,0.08404323]
[1719185491385,1.69863457,63618.0,63617.0,0.08404323]
[1719185491826,1.69855219,63618.0,63617.0,0.08404323]
[1719185494045,1.75093877,63618.0,63617.0,0.08404323]
[1719185494745,1.75082551,63618.0,63617.0,0.08404323]
[1719185495729,1.69843893,63618.0,63617.0,0.08404323]
[1719185496211,1.38406293,63618.0,63617.0,0.08404323]
[1719185496420,1.38406293,63618.0,63617.0,0.22464323]
[1719185496421,0.58819068,63618.0,63617.0,0.22464323]
[1719185496587,0.64129068,63618.0,63617.0,0.22464323]
[1719185496990,0.54129068,63618.0,63617.0,0.22464323]
[1719185497355,0.48819068,63618.0,63617.0,0.22464323]
[1719185497528,0.54129068,63618.0,63617.0,0.22464323]
[1719185497760,0.48819068,63618.0,63617.0,0.22464323]
[1719185497969,0.39804481,63618.0,63617.0,0.22464323]
[1719185498185,0.42485057,63618.0,63617.0,0.22464323]
[1719185498397,0.52485057,63618.0,63617.0,0.22464323]
[1719185498611,0.48374657,63618.0,63617.0,0.22464323]
[1719185498810,0.57795057,63618.0,63617.0,0.22464323]
[1719185500744,0.52485057,63618.0,63617.0,0.22464323]
[1719185500945,0.33096481,63618.0,63617.0,0.22464323]
[1719185501170,0.42193466,63618.0,63617.0,0.22464323]
[1719185501365,0.48533562,63618.0,63617.0,0.22464323]
[1719185501609,0.42193416,63618.0,63617.0,0.22464323]
[1719185503689,0.35853289,63618.0,63617.0,0.22464323]
[1719185504098,0.35849996,63618.0,63617.0,0.22464323]
[1719185504747,0.20593884,63618.0,63617.0,0.38183323]
[1719185504970,0.20574965,63618.0,63617.0,0.22464323]
[1719185506287,0.15264965,63618.0,63617.0,1.01059523]
[1719185506488,0.05264965,63618.0,63617.0,1.03059523]
[1719185506763,0.03838515,63618.0,63617.0,1.34497623]
[1719185507457,0.0381176,63618.0,63617.0,1.34497623]
[1719185507628,0.0331176,63618.0,63617.0,1.34397623]
[1719185507818,0.0281176,63618.0,63617.0,1.34397623]
[1719185507968,0.0301176,63618.0,63617.0,1.34397623]
[1719185509547,0.0331176,63618.0,63617.0,1.34397623]
[1719185510352,0.03254183,63618.0,63617.0,1.34397623]
[1719185510760,0.03249357,63618.0,63617.0,1.34397623]
[1719185511058,0.00585,63618.0,63617.0,1.34397623]
[1719185511413,0.00585,63618.0,63617.0,1.65835723]
[1719185511673,0.00585,63618.0,63617.0,1.91145723]
[1719185512452,0.01553461,63630.0,63629.0,0.628383]
[1719185512641,0.0531,63638.0,63635.0,0.157146]
[1719185512841,0.17833419,63637.0,63634.0,0.157148]
[1719185513039,0.17887307,63636.0,63634.0,0.157148]
[1719185513243,0.1,63636.0,63635.0,0.157146]
[1719185513452,0.1,63636.0,63635.0,0.537338]
[1719185513453,0.17887251,63636.0,63635.0,0.537338]
[1719185514039,0.12577251,63636.0,63635.0,0.85163]
[1719185514226,0.02577251,63636.0,63635.0,0.95483]
[1719185514568,0.02577251,63636.0,63635.0,0.95583]
[1719185514775,0.02577251,63636.0,63635.0,0.95483]
[1719185515617,0.03177251,63636.0,63635.0,0.95583]
[1719185515999,0.006,63636.0,63635.0,0.95583]
[1719185516429,0.006,63636.0,63635.0,0.95683]
[1719185516430,0.012,63636.0,63635.0,0.95683]
[1719185519735,0.012,63636.0,63635.0,1.271122]
[1719185520560,0.006,63636.0,63635.0,1.270122]
[1719185520771,0.00085,63639.0,63638.0,0.949092]
[1719185521639,0.00085,63639.0,63638.0,0.614815]
[1719185521839,0.00085,63639.0,63635.0,0.157145]
[1719185522044,0.0531,63636.0,63634.0,0.296346]
[1719185522246,0.0531,63636.0,63635.0,0.157146]
[1719185522670,0.07844969,63636.0,63635.0,0.157146]
[1719185523079,0.07844969,63636.0,63635.0,0.471438]
[1719185523288,0.04250537,63636.0,63635.0,0.471438]
[1719185523495,0.09560537,63636.0,63635.0,0.471438]
[1719185524462,0.09560537,63636.0,63635.0,0.157146]
[1719185524929,0.07025568,63636.0,63635.0,0.157146]
[1719185525134,0.09448225,63636.0,63635.0,0.157146]
[1719185526171,0.25162625,63636.0,63634.0,0.0637]
[1719185526388,0.02422657,63635.0,63634.0,0.0637]
[1719185526808,0.04062392,63635.0,63632.0,0.0797]
[1719185527021,0.02422657,63634.0,63632.0,0.0797]
[1719185527232,0.0531,63633.0,63632.0,0.0797]
[1719185527446,0.07732657,63633.0,63632.0,0.0797]
[1719185527670,0.09372392,63633.0,63632.0,0.236853]
[1719185528122,0.04073197,63633.0,63632.0,0.236853]
[1719185528338,0.01639735,63633.0,63632.0,0.236853]
[1719185528552,0.02433447,63633.0,63632.0,0.236853]
[1719185528781,0.04073182,63633.0,63632.0,0.238853]
[1719185529211,0.04073182,63633.0,63632.0,0.0817]
[1719185529436,0.51218482,63633.0,63632.0,0.002]
[1719185529654,1.27828882,63633.0,63632.0,0.002]
[1719185529875,1.45084994,63633.0,63632.0,0.002]
[1719185530112,1.59113613,63633.0,63632.0,0.006]
[1719185530753,1.59113613,63633.0,63618.0,0.063335]
[1719185530754,0.157185,63619.0,63618.0,0.000935]
[1719185530980,0.314353,63623.0,63618.0,0.000935]
[1719185530981,0.314359,63622.0,63618.0,0.000935]
[1719185531184,0.01638773,63619.0,63618.0,0.000935]
[1719185531389,0.02488388,63619.0,63618.0,0.000935]
[1719185531598,0.04127161,63619.0,63618.0,0.000935]
[1719185533701,0.04127161,63619.0,63618.0,0.005935]
[1719185534132,0.01638773,63619.0,63618.0,0.005935]
[1719185534398,0.02489937,63621.0,63620.0,0.02]
[1719185534654,0.12489614,63632.0,63624.0,0.1415]
[1719185534856,0.157164,63628.0,63625.0,0.00314298]
[1719185535070,0.12562983,63627.0,63624.0,0.1415]
[1719185535279,0.02562983,63626.0,63624.0,0.1415]
[1719185537041,0.02562983,63626.0,63616.0,0.334384]
[1719185537042,0.02548915,63625.0,63618.0,0.064535]
[1719185537257,0.157184,63620.0,63618.0,0.064535]
[1719185537739,0.02549175,63619.0,63618.0,0.064535]
[1719185538776,0.02583134,63619.0,63618.0,0.064535]
[1719185539454,0.04218023,63619.0,63618.0,0.064535]
[1719185540072,0.01634889,63619.0,63618.0,0.064535]
[1719185540290,0.01634889,63619.0,63618.0,0.067535]
[1719185540291,0.02584818,63619.0,63618.0,0.067535]
[1719185540528,0.04219673,63619.0,63618.0,0.071535]
[1719185543139,0.01634889,63619.0,63618.0,1.40585561]
[1719185543337,0.25715,63634.0,63628.0,0.298762]
[1719185543561,0.1802304,63633.0,63630.0,0.07764518]
[1719185543758,0.1230784,63632.0,63630.0,0.07764518]
[1719185543991,0.0230784,63631.0,63630.0,0.07764518]
[1719185544577,0.0230784,63631.0,63628.0,0.298762]
[1719185544781,0.0230784,63630.0,63628.0,0.298762]
[1719185544981,0.0230784,63629.0,63628.0,0.298762]
[1719185546466,0.257149,63634.0,63629.0,0.157159]
[1719185546680,0.02246274,63633.0,63629.0,0.157159]
[1719185547490,0.02246274,63633.0,63630.0,0.157157]
[1719185547950,0.1447,63631.0,63624.0,0.0803]
[1719185548153,0.157167,63627.0,63622.0,0.157177]
[1719185548324,0.02229448,63626.0,63622.0,0.157177]
[1719185548951,0.02229448,63626.0,63623.0,0.02]
[1719185549178,0.02229448,63625.0,63624.0,0.157171]
[1719185549396,0.30972012,63630.0,63624.0,0.157171]
[1719185549600,0.157166,63627.0,63623.0,0.157175]
[1719185549826,0.02267575,63626.0,63623.0,0.157175]
[1719185549997,0.157166,63627.0,63623.0,0.157175]
[1719185550202,0.0224713,63626.0,63623.0,0.157175]
[1719185550408,0.001,63625.0,63624.0,0.009]
[1719185550963,0.001,63626.0,63623.0,0.166175]
[1719185551364,0.157166,63627.0,63623.0,0.164175]
[1719185551581,0.001,63625.0,63624.0,0.01]
[1719185551990,0.14,63635.0,63624.0,0.02]
[1719185552214,0.56685912,63634.0,63628.0,0.1378]
[1719185552427,0.157156,63631.0,63628.0,0.1378]
[1719185552630,0.157159,63630.0,63628.0,0.1378]
[1719185553590,0.157156,63631.0,63628.0,0.1378]
[1719185553790,0.157145,63636.0,63630.0,0.157157]
[1719185553993,0.257147,63635.0,63630.0,0.157157]
[1719185554336,0.01364498,63634.0,63630.0,0.157157]
[1719185555629,0.01364498,63634.0,63627.0,0.39197518]
[1719185555630,0.01364498,63634.0,63633.0,0.157151]
[1719185555828,0.01364498,63634.0,63633.0,0.491453]
[1719185556262,0.01364498,63634.0,63633.0,0.805755]
[1719185556582,0.1,63638.0,63635.0,0.157143]
[1719185557092,0.01364498,63637.0,63635.0,0.157143]
[1719185557875,0.00085,63639.0,63635.0,0.157143]
[1719185558076,0.01366446,63636.0,63635.0,0.157143]
[1719185558322,0.004,63638.0,63636.0,0.157143]
[1719185559380,0.09985,63640.0,63637.0,0.157141]
[1719185559693,0.157129,63642.0,63638.0,0.0664]
[1719185559876,0.30969012,63642.0,63638.0,0.0664]
[1719185560230,0.157131,63641.0,63638.0,0.0664]
[1719185560430,0.157131,63641.0,63635.0,0.223544]
[1719185561041,0.157131,63641.0,63638.0,0.001]
[1719185561455,0.1,63640.0,63635.0,0.223544]
[1719185561652,0.105,63640.0,63635.0,0.223544]
[1719185561897,0.105,63640.0,63636.0,0.157143]
[1719185562094,0.262135,63640.0,63635.0,0.0664]
[1719185562294,0.262135,63640.0,63635.0,0.157146]
[1719185562729,0.157136,63639.0,63633.0,0.471451]
[1719185562935,0.1,63638.0,63633.0,0.471451]
[1719185563112,0.1,63638.0,63634.0,0.157148]
[1719185564136,0.102,63638.0,63634.0,0.157148]
[1719185564737,0.101,63638.0,63634.0,0.157148]
[1719185564984,0.102,63638.0,63634.0,0.157148]
[1719185565184,0.102,63638.0,63631.0,0.157155]
[1719185565185,0.157144,63636.0,63631.0,0.157155]
[1719185565390,0.0659,63637.0,63633.0,0.15715]
[1719185565518,0.338739,63638.0,63633.0,0.15715]
[1719185565858,0.157144,63636.0,63631.0,0.157155]
[1719185566501,0.157144,63636.0,63632.0,0.157153]
[1719185566631,0.157141,63637.0,63634.0,0.07764518]
[1719185567502,0.06296,63644.0,63637.0,0.1416]
[1719185567685,0.01553461,63646.0,63643.0,0.07764518]
[1719185567883,0.0703302,63650.0,63643.0,0.23476918]
[1719185567884,0.157112,63649.0,63643.0,0.23476918]
[1719185568138,0.30967512,63648.0,63643.0,0.23476918]
[1719185569459,0.10914324,63647.0,63643.0,0.23476918]
[1719185569629,0.10914324,63647.0,63642.0,0.157128]
[1719185569930,0.005,63644.0,63642.0,0.157128]
[1719185570147,0.02185338,63643.0,63642.0,0.157128]
[1719185570390,0.03099662,63643.0,63642.0,0.157128]
[1719185570812,0.03099662,63643.0,63634.0,0.314296]
[1719185570965,0.157132,63641.0,63636.0,0.157143]
[1719185571163,0.02185338,63640.0,63636.0,0.314286]
[1719185571367,0.02185338,63639.0,63634.0,0.066]
[1719185571524,0.02131746,63638.0,63634.0,0.223147]
[1719185571771,0.02131813,63637.0,63634.0,0.223147]
[1719185572173,0.03046137,63636.0,63634.0,0.223147]
[1719185572387,0.02131813,63635.0,63634.0,0.223147]
[1719185572792,0.02131813,63635.0,63634.0,0.157147]
[1719185572996,0.00914324,63635.0,63634.0,0.157147]
[1719185573204,0.03046137,63635.0,63634.0,0.157147]
[1719185573412,0.157137,63639.0,63636.0,0.002]
[1719185573618,0.02156708,63638.0,63634.0,0.157147]
[1719185573825,0.02156708,63637.0,63634.0,0.157147]
[1719185574027,0.02156708,63636.0,63634.0,0.167147]
[1719185574241,0.02156708,63635.0,63634.0,0.157147]
[1719185574442,0.02156708,63638.0,63634.0,0.157147]
[1719185574647,0.17869556,63637.0,63636.0,0.005]
[1719185574864,0.17869556,63637.0,63634.0,0.009]
[1719185575077,0.157138,63638.0,63634.0,0.009]
[1719185575284,0.02155503,63637.0,63634.0,0.009]
[1719185576134,0.02155503,63637.0,63633.0,0.157151]
[1719185576341,0.02155503,63637.0,63634.0,0.015]
[1719185576548,0.02155503,63637.0,63634.0,0.006]
[1719185577065,0.17869603,63637.0,63634.0,0.008]
[1719185577246,0.02155503,63636.0,63634.0,0.015]
[1719185577655,0.157141,63637.0,63632.0,0.157153]
[1719185577884,0.02148266,63636.0,63632.0,0.157153]
[1719185578129,0.02148266,63636.0,63634.0,0.009]
[1719185580076,0.02148266,63636.0,63632.0,0.157153]
[1719185580248,0.17862666,63636.0,63632.0,0.004]
[1719185580449,0.02148266,63635.0,63634.0,0.08364518]
[1719185580646,0.80725044,63635.0,63634.0,0.006]
[1719185580874,1.49634454,63635.0,63634.0,0.006]
[1719185581074,1.67086454,63635.0,63634.0,0.006]
[1719185581255,0.157175,63624.0,63620.0,0.07764518]
[1719185581454,0.02152044,63623.0,63620.0,0.07764518]
[1719185581660,0.17869544,63623.0,63620.0,0.07764518]
[1719185581873,0.02152044,63622.0,63620.0,0.07764518]
[1719185582686,0.02152044,63622.0,63621.0,0.15718]
[1719185582889,0.02152044,63622.0,63621.0,0.314361]
[1719185583230,0.00913344,63622.0,63621.0,0.15718]
[1719185583631,0.314334,63627.0,63621.0,0.15718]
[1719185583632,0.02208172,63626.0,63621.0,0.15718]
[1719185583831,0.314334,63627.0,63621.0,0.15718]
[1719185583832,0.00911715,63622.0,63621.0,0.16318]
[1719185584033,0.02208172,63624.0,63621.0,0.16918]
[1719185584235,0.00911916,63622.0,63621.0,0.16918]
[1719185584445,0.02208172,63623.0,63621.0,0.16918]
[1719185584646,0.03102838,63622.0,63621.0,0.16318]
[1719185585280,0.03102838,63622.0,63621.0,0.006]
[1719185586056,0.00911916,63622.0,63621.0,0.007]
[1719185586261,0.02176767,63622.0,63621.0,0.007]
[1719185586470,0.00911916,63622.0,63620.0,0.07764518]
[1719185586702,0.03088683,63622.0,63621.0,0.005]
[1719185586901,0.03088683,63622.0,63621.0,0.011]
[1719185587103,0.18806483,63622.0,63621.0,0.006]
[1719185587304,0.50242083,63622.0,63621.0,0.012]
[1719185587668,0.81677683,63622.0,63621.0,0.012]
[1719185587877,1.41679395,63622.0,63621.0,0.006]
[1719185588087,1.53679395,63622.0,63621.0,0.006]
[1719185588304,1.5948516,63622.0,63621.0,0.006]
[1719185589312,1.5748516,63622.0,63621.0,0.006]
[1719185590160,1.51679395,63622.0,63621.0,0.012]
[1719185592235,1.38369395,63622.0,63621.0,0.012]
[1719185592431,1.38389718,63622.0,63621.0,0.012]
[1719185592691,1.36192628,63622.0,63621.0,0.012]
[1719185592903,1.38380604,63622.0,63621.0,0.012]
[1719185593863,0.60253292,63622.0,63621.0,0.012]
[1719185595519,0.03099892,63622.0,63621.0,0.23578]
[1719185596363,0.03099892,63622.0,63621.0,0.0786]
[1719185598249,0.03099892,63622.0,63621.0,0.23578]
[1719185598477,0.0316594,63622.0,63621.0,0.23578]
[1719185598774,0.00756159,63622.0,63621.0,0.23578]
[1719185598971,0.157167,63627.0,63621.0,0.23578]
[1719185599174,0.00756159,63622.0,63621.0,0.23578]
[1719185599394,0.157167,63627.0,63622.0,0.157178]
[1719185599736,0.23837394,63628.0,63625.0,0.07764518]
[1719185600139,0.08120994,63628.0,63625.0,0.07764518]
[1719185600384,0.001,63627.0,63625.0,0.07764518]
[1719185600928,0.08120994,63628.0,63625.0,0.07764518]
[1719185601099,0.001,63628.0,63625.0,0.07764518]
[1719185601275,0.1,63629.0,63625.0,0.07764518]
[1719185602421,0.1,63629.0,63628.0,0.157163]
[1719185602641,0.157149,63634.0,63628.0,0.157163]
[1719185602842,0.1,63633.0,63628.0,0.157163]
[1719185604173,0.1,63633.0,63629.0,0.15716]
[1719185604378,0.157146,63635.0,63630.0,0.0664]
[1719185604588,0.1,63634.0,63630.0,0.0664]
[1719185605002,0.1,63634.0,63631.0,0.0764]
[1719185606813,0.101,63634.0,63631.0,0.0764]
[1719185608854,0.02081763,63633.0,63631.0,0.0764]
[1719185610120,0.02081763,63633.0,63631.0,0.0774]
[1719185610866,0.02081771,63632.0,63631.0,0.0774]
[1719185611075,0.02081771,63633.0,63631.0,0.0784]
[1719185611289,0.0208177,63632.0,63631.0,0.0784]
[1719185611825,0.0208177,63632.0,63631.0,0.391712]
[1719185612028,0.02081432,63633.0,63631.0,0.08054299]
[1719185612353,0.00085,63643.0,63638.0,0.157137]
[1719185612552,0.07777893,63642.0,63639.0,0.0614]
[1719185613115,0.02081173,63642.0,63639.0,0.0614]
[1719185613375,0.02081173,63641.0,63639.0,0.0614]
[1719185613611,0.02081173,63640.0,63639.0,0.0614]
[1719185613830,0.004,63642.0,63639.0,0.0624]
[1719185614035,0.0205718,63640.0,63639.0,0.0624]
[1719185614391,0.00760909,63640.0,63639.0,0.0614]